bitfinex-derivatives/quotes_SOLF0:USTF0_20250919
["timestamp","ask_amount","ask_price","bid_price","bid_amount"]
[1758308724533,0.03110412,237.48,237.47,109.66]
[1758308726841,0.03110412,237.48,237.41,6.78]
[1758308727136,0.03110412,237.48,237.43,6.78]
[1758308727538,0.03110412,237.48,237.45,6.78]
[1758308727835,0.03110412,237.48,237.47,6.78]
[1758308728242,0.03110412,237.48,237.46,109.38]
[1758308728435,0.03110412,237.48,237.47,6.78]
[1758308731240,0.03110412,237.48,237.41,7.11]
[1758308731444,0.03110412,237.48,237.43,7.11]
[1758308732942,0.03110412,237.48,237.42,102.58]
[1758308733138,0.03110412,237.48,237.47,10.8977]
[1758308733337,0.03110412,237.48,237.47,113.4777]
[1758308734436,0.03110412,237.48,237.47,113.4577]
[1758308735842,6.61,237.64,237.53,3.7867]
[1758308736034,1.05256005,237.63,237.54,102.56]
[1758308736234,6.61,237.61,237.54,102.56]
[1758308736436,5.77655533,237.6,237.54,102.56]
[1758308736636,6.61,237.58,237.54,102.56]
[1758308736834,6.61,237.56,237.54,102.56]
[1758308737143,7.66256005,237.55,237.54,0.02733054]
[1758308737642,7.66256005,237.55,237.45,7.11]
[1758308737643,8.08256005,237.55,237.45,7.11]
[1758308737847,2.31711958,237.57,237.46,97.0]
[1758308737848,6.61,237.53,237.46,97.0]
[1758308738047,1.05256005,237.52,237.46,97.0]
[1758308739759,0.02766556,237.51,237.46,97.0]
[1758308739959,0.02766556,237.51,237.48,7.11]
[1758308740553,0.02766556,237.51,237.47,58.9195]
[1758308740954,0.02766556,237.51,237.5,7.11]
[1758308741256,0.02766556,237.51,237.5,110.07]
[1758308743360,0.02766556,237.51,237.5,112.38711958]
[1758308746161,6.61,237.63,237.52,7.11]
[1758308746364,1.05247948,237.62,237.55,7.11]
[1758308746556,6.61,237.6,237.5,7.11]
[1758308746860,1.05247948,237.59,237.51,81.16]
[1758308747457,1.05248044,237.58,237.54,7.11]
[1758308747656,6.61,237.6,237.55,110.09]
[1758308747657,1.05248044,237.57,237.55,110.09]
[1758308747853,3.7856,237.61,237.55,110.09]
[1758308748058,6.61,237.59,237.55,110.09]
[1758308748260,7.66248044,237.58,237.55,110.09]
[1758308748461,1.05248044,237.57,237.55,110.09]
[1758308748663,6.61,237.58,237.55,110.09]
[1758308748865,1.05248028,237.57,237.55,110.09]
[1758308749063,6.61,237.58,237.55,110.09]
[1758308749266,1.05248012,237.57,237.55,110.09]
[1758308749458,6.61,237.58,237.55,110.09]
[1758308749656,1.05248012,237.57,237.55,110.09]
[1758308749857,6.61,237.63,237.53,0.03219087]
[1758308750062,6.61,237.59,237.53,18.49219087]
[1758308750259,6.61,237.57,237.53,18.49219087]
[1758308750562,6.61,237.55,237.53,18.49219087]
[1758308750762,1.05248044,237.54,237.53,18.49219087]
[1758308751770,7.66248044,237.54,237.53,0.03219087]
[1758308753459,1.05248044,237.54,237.53,0.03219087]
[1758308753655,1.05248044,237.56,237.53,0.03219087]
[1758308753959,7.66248044,237.55,237.53,0.03219087]
[1758308754159,1.05248044,237.54,237.53,0.03219087]
[1758308755364,6.61,237.54,237.53,0.03219087]
[1758308755665,7.66248044,237.54,237.53,0.03219087]
[1758308756071,5.26848242,237.59,237.53,0.03219087]
[1758308756072,6.61,237.61,237.53,0.03219087]
[1758308756272,1.05259156,237.6,237.53,0.03219087]
[1758308756464,7.66259156,237.59,237.53,0.03219087]
[1758308756762,6.61,237.57,237.54,7.11]
[1758308756964,1.05259156,237.56,237.54,7.11]
[1758308757163,6.61,237.57,237.54,7.11]
[1758308758870,3.7853,237.62,237.53,0.03219087]
[1758308759065,8.28250667,237.61,237.53,0.03219087]
[1758308759265,1.05250667,237.6,237.53,0.03219087]
[1758308759470,1.05250667,237.59,237.53,0.03219087]
[1758308759767,7.23,237.57,237.53,7.24219087]
[1758308760768,7.23,237.62,237.54,7.21]
[1758308760970,1.05249987,237.61,237.54,8.69258242]
[1758308761174,8.28249987,237.6,237.54,8.69258242]
[1758308761366,7.23,237.58,237.54,8.69258242]
[1758308761571,1.05249987,237.59,237.54,8.69258242]
[1758308761572,7.23,237.64,237.55,7.21]
[1758308761871,7.23,237.62,237.55,10.9962]
[1758308762175,7.23,237.62,237.55,7.21]
[1758308762872,8.50859528,237.67,237.58,3.7858]
[1758308763176,7.23,237.66,237.58,110.17]
[1758308763382,7.23,237.66,237.6,7.21]
[1758308763675,7.23,237.66,237.6,7.23822273]
[1758308765770,7.96248508,237.7,237.61,3.7854]
[1758308765976,7.96248508,237.7,237.62,7.21]
[1758308766673,12.68648036,237.7,237.62,7.21]
[1758308766869,12.68648036,237.7,237.63,3.7851]
[1758308767064,7.96248508,237.7,237.63,3.7851]
[1758308768679,7.96248508,237.7,237.64,3.7848]
[1758308770374,7.96248508,237.7,237.66,7.21]
[1758308770567,0.73248508,237.7,237.65,102.88]
[1758308770769,0.73248508,237.7,237.66,7.21]
[1758308770967,0.73248508,237.7,237.67,7.21]
[1758308771176,7.23,237.72,237.66,7.21]
[1758308771880,7.23,237.72,237.65,102.91159565]
[1758308771881,7.23,237.72,237.67,3.7845]
[1758308772078,7.23,237.72,237.68,7.21]
[1758308772478,7.23,237.72,237.67,3.7845]
[1758308772679,7.23,237.72,237.68,7.21]
[1758308773080,0.73241571,237.74,237.68,10.9942]
[1758308777181,0.73241571,237.74,237.7,7.21]
[1758308777684,0.73241571,237.74,237.69,1.48258242]
[1758308777980,0.73241571,237.74,237.7,3.7839]
[1758308778378,0.73241571,237.74,237.71,7.21]
[1758308778578,0.73241571,237.74,237.7,3.7839]
[1758308778782,0.73241571,237.74,237.71,7.21]
[1758308779982,7.96241571,237.74,237.71,7.21]
[1758308780178,7.96241571,237.74,237.7,0.02798902]
[1758308780382,7.23,237.73,237.7,0.02798902]
[1758308780584,7.23,237.73,237.7,7.23798902]
[1758308781379,7.23,237.73,237.71,7.21]
[1758308781680,0.73241571,237.74,237.71,7.21]
[1758308781985,7.96241571,237.74,237.71,7.21]
[1758308783981,7.23,237.73,237.7,0.02798902]
[1758308784385,0.73241571,237.74,237.7,0.02798902]
[1758308784689,7.23,237.73,237.7,0.02798902]
[1758308786584,3.7837,237.72,237.7,0.02798902]
[1758308786791,7.23,237.71,237.63,7.21]
[1758308787586,7.23,237.69,237.63,7.21]
[1758308789390,0.02688323,237.68,237.63,7.21]
[1758308789593,6.67,237.67,237.63,7.21]
[1758308790492,6.67,237.67,237.62,6.62]
[1758308790789,6.67,237.67,237.61,106.5053]
[1758308791090,6.67,237.67,237.61,6.62]
[1758308791292,6.69688323,237.68,237.62,102.66]
[1758308793289,6.69688323,237.68,237.6,6.62]
[1758308793491,6.67,237.66,237.57,420.94]
[1758308793695,6.67,237.64,237.57,420.94]
[1758308793990,6.67,237.64,237.56,6.62]
[1758308794193,6.67,237.62,237.56,6.62]
[1758308794585,6.67,237.62,237.43,318.14]
[1758308794586,6.67,237.6,237.54,102.76]
[1758308794798,6.67,237.6,237.51,109.36]
[1758308795292,6.67,237.6,237.51,109.38]
[1758308795593,1.05257624,237.59,237.51,109.38]
[1758308795887,3.7858,237.59,237.51,109.38]
[1758308796888,6.67,237.6,237.51,109.38]
[1758308797588,6.67,237.6,237.51,109.5]
[1758308798093,6.67,237.6,237.51,6.62]
[1758308798282,1.48258242,237.56,237.46,35.56]
[1758308798786,6.67,237.55,237.46,35.56]
[1758308799296,3.7866,237.54,237.46,6.62]
[1758308799491,6.67,237.55,237.46,6.62]
[1758308800897,6.67,237.55,237.46,8.10258242]
[1758308802098,6.67,237.55,237.46,111.18258242]
[1758308802305,10.4564,237.55,237.46,111.18258242]
[1758308803597,6.67,237.55,237.47,6.62]
[1758308804198,6.67,237.55,237.47,8.10258242]
[1758308805598,6.67,237.55,237.47,6.62]
[1758308807000,10.4564,237.55,237.47,6.62]
[1758308807199,6.67,237.55,237.47,6.62]
[1758308807602,6.67,237.55,237.47,8.10258242]
[1758308809500,3.7865,237.55,237.46,103.08]
[1758308809802,6.67,237.54,237.46,103.08]
[1758308811507,10.4567,237.54,237.46,103.08]
[1758308812802,3.7867,237.54,237.45,6.62]
[1758308813008,58.8913,237.59,237.45,6.62]
[1758308813009,6.67,237.51,237.45,6.62]
[1758308814907,6.67,237.49,237.45,6.62]
[1758308817112,3.7873,237.5,237.4,6.62]
[1758308817113,3.7878,237.47,237.4,6.62]
[1758308817314,6.67,237.46,237.34,6.62]
[1758308818112,10.4584,237.43,237.34,6.62]
[1758308818303,6.67,237.43,237.34,6.62]
[1758308819012,6.67,237.43,237.34,10.4096]
[1758308819213,7.28,237.47,237.35,6.73]
[1758308819716,7.28,237.47,237.35,10.5195]
[1758308819717,3.788,237.46,237.35,10.5195]
[1758308820314,3.788,237.46,237.36,2.31806651]
[1758308820514,7.2,237.45,237.36,2.31806651]
[1758308822113,7.2,237.45,237.37,6.91]
[1758308824827,7.2,237.45,237.32,3.7899]
[1758308825038,7.2,237.45,237.33,6.91]
[1758308826530,3.7886,237.42,237.33,6.91]
[1758308826735,7.2,237.41,237.33,6.91]
[1758308829927,10.9888,237.41,237.33,6.91]
[1758308830438,0.02965649,237.39,237.33,6.91]
[1758308835231,3.81865649,237.39,237.33,6.91]
[1758308835431,11.01865649,237.39,237.33,6.91]
[1758308835841,3.7893,237.37,237.33,6.91]
[1758308836138,10.9893,237.37,237.33,6.91]
[1758308836331,10.9893,237.37,237.33,6.94235861]
[1758308838036,7.2,237.36,237.33,6.94235861]
[1758308839155,7.2,237.34,237.23,6.91]
[1758308839436,1.05345844,237.33,237.23,6.91]
[1758308839942,10.9902,237.32,237.23,6.91]
[1758308840540,0.02814514,237.3,237.23,6.91]
[1758308842038,0.02814514,237.3,237.23,2.31806651]
[1758308842233,0.02814514,237.3,237.24,6.91]
[1758308843234,0.02814514,237.3,237.26,3.7909]
[1758308843436,0.02814514,237.3,237.27,6.91]
[1758308843737,0.02814514,237.3,237.26,3.7909]
[1758308843932,0.02814514,237.3,237.27,6.91]
[1758308844338,0.02814514,237.3,237.25,6.91]
[1758308844539,0.02814514,237.3,237.24,102.48]
[1758308845038,0.02814514,237.3,237.25,6.91]
[1758308845238,0.02814514,237.3,237.24,102.48]
[1758308846036,0.02814514,237.3,237.25,6.91]
[1758308846640,0.02814514,237.3,237.24,106.2712]
[1758308846841,0.02814514,237.3,237.25,6.91]
[1758308847641,0.02814514,237.3,237.24,106.2712]
[1758308847840,0.02814514,237.3,237.25,6.91]
[1758308848234,0.02814514,237.3,237.27,2.31806651]
[1758308848440,0.02814514,237.3,237.28,7.17]
[1758308848632,0.02814514,237.3,237.27,2.31806651]
[1758308848935,0.02814514,237.3,237.27,6.10876651]
[1758308849135,0.02814514,237.3,237.28,7.17]
[1758308849542,0.02814514,237.3,237.27,6.10876651]
[1758308850341,0.02814514,237.3,237.28,7.17]
[1758308850742,0.02814514,237.3,237.29,10.9605]
[1758308851039,0.02814514,237.3,237.29,7.17]
[1758308851444,7.2,237.38,237.29,7.17]
[1758308851643,7.01,237.42,237.29,7.17]
[1758308851835,1.05342907,237.41,237.31,7.17]
[1758308852039,1.05342907,237.4,237.31,7.17]
[1758308852346,7.01,237.42,237.31,7.17]
[1758308852645,0.02718893,237.38,237.31,7.17]
[1758308852846,0.02718893,237.38,237.31,10.9601]
[1758308855846,0.02718893,237.38,237.31,3.7901]
[1758308856050,0.02718893,237.38,237.32,7.17]
[1758308856349,0.02718893,237.38,237.32,3.7899]
[1758308856538,0.02718893,237.38,237.33,7.17]
[1758308857349,0.02718893,237.38,237.31,7.17]
[1758308857941,1.05348951,237.37,237.31,7.17]
[1758308858146,0.02718893,237.38,237.31,7.17]
[1758308860158,7.03718893,237.38,237.31,7.17]
[1758308861352,1.05345602,237.37,237.31,7.17]
[1758308861651,7.03718893,237.38,237.31,7.17]
[1758308861846,1.05345602,237.37,237.31,7.17]
[1758308862051,0.02718893,237.38,237.31,7.17]
[1758308862752,0.02718893,237.38,237.32,7.17]
[1758308864454,7.01,237.45,237.33,0.02849957]
[1758308864654,1.05322361,237.44,237.35,7.17]
[1758308864854,1.05322361,237.43,237.35,7.17]
[1758308865155,1.05322361,237.42,237.35,7.17]
[1758308865354,7.01,237.45,237.35,7.17]
[1758308865654,1.05323809,237.44,237.35,7.17]
[1758308865855,1.05323809,237.43,237.39,7.17]
[1758308866059,1.05323809,237.42,237.39,7.17]
[1758308866255,15.52209528,237.45,237.39,7.17]
[1758308866555,8.06323824,237.44,237.39,7.17]
[1758308866855,1.05323824,237.43,237.39,7.17]
[1758308867059,1.05323824,237.42,237.39,7.17]
[1758308867354,7.01,237.44,237.39,7.17]
[1758308867555,1.05323824,237.43,237.39,7.17]
[1758308867754,1.05323824,237.42,237.39,7.17]
[1758308868054,7.01,237.44,237.39,7.17]
[1758308868250,1.05323824,237.43,237.39,7.17]
[1758308868456,1.05323824,237.42,237.39,7.17]
[1758308868759,1.05323824,237.41,237.39,7.17]
[1758308868951,10.7983,237.44,237.38,0.02832987]
[1758308869152,1.05323824,237.43,237.38,0.02832987]
[1758308869353,8.06323824,237.42,237.38,7.19832987]
[1758308869654,1.05323824,237.41,237.38,7.19832987]
[1758308870453,7.01,237.42,237.38,7.19832987]
[1758308870651,1.05329001,237.41,237.38,7.19832987]
[1758308870849,7.01,237.42,237.38,7.19832987]
[1758308871055,8.06329001,237.41,237.38,7.19832987]
[1758308871250,7.01,237.41,237.38,7.19832987]
[1758308872252,8.51229528,237.44,237.38,0.02832987]
[1758308872462,8.06329032,237.43,237.38,7.19832987]
[1758308872652,8.06329032,237.42,237.38,7.19832987]
[1758308872853,1.05329032,237.41,237.38,7.19832987]
[1758308873053,7.01,237.42,237.38,7.19832987]
[1758308873251,1.05329032,237.41,237.38,7.19832987]
[1758308873454,7.01,237.42,237.38,7.19832987]
[1758308873654,1.05329032,237.41,237.38,7.19832987]
[1758308873855,7.01,237.42,237.38,7.19832987]
[1758308874055,1.05329032,237.41,237.38,7.19832987]
[1758308874356,7.01,237.42,237.38,7.19832987]
[1758308874662,8.06329032,237.41,237.38,0.02832987]
[1758308874859,7.01,237.41,237.38,0.02832987]
[1758308875159,7.01,237.41,237.38,7.19832987]
[1758308876163,1.05329032,237.4,237.38,7.19832987]
[1758308876372,7.01,237.41,237.38,7.19832987]
[1758308876564,1.05329032,237.4,237.38,7.19832987]
[1758308876862,7.01,237.41,237.38,7.19832987]
[1758308877064,1.05329032,237.4,237.38,7.19832987]
[1758308877255,7.01,237.41,237.38,0.02832987]
[1758308877460,1.05332441,237.4,237.34,7.17]
[1758308877659,7.01,237.38,237.31,7.17]
[1758308879167,1.05339618,237.37,237.31,7.17]
[1758308879364,7.01,237.38,237.31,7.17]
[1758308879668,1.05339618,237.37,237.31,7.17]
[1758308879867,7.01,237.38,237.31,7.17]
[1758308880069,1.05339618,237.37,237.31,7.17]
[1758308880268,3.7889,237.4,237.31,7.17]
[1758308880475,1.05339618,237.39,237.31,7.17]
[1758308880768,1.05339618,237.38,237.31,7.17]
[1758308880971,1.05339618,237.37,237.31,7.17]
[1758308881163,11.0189,237.4,237.31,7.17]
[1758308881370,1.05339612,237.39,237.31,7.17]
[1758308881567,1.05339612,237.38,237.31,7.17]
[1758308881768,1.05339612,237.37,237.31,10.9601]
[1758308881967,11.0189,237.4,237.32,6.69]
[1758308882166,1.05339612,237.39,237.32,6.69]
[1758308882366,1.05339612,237.38,237.32,6.69]
[1758308882572,1.05339612,237.37,237.32,6.69]
[1758308882770,11.0189,237.4,237.32,6.69]
[1758308882971,1.05339606,237.39,237.32,6.69]
[1758308883171,1.05339606,237.38,237.32,6.69]
[1758308883371,1.05339606,237.37,237.32,6.69]
[1758308883666,11.0189,237.4,237.32,10.48]
[1758308883971,1.05339608,237.39,237.32,10.48]
[1758308884173,1.05339608,237.38,237.32,6.69]
[1758308884372,1.05339608,237.37,237.31,6.69]
[1758308884768,1.05339608,237.37,237.3,1.48413293]
[1758308884970,1.05339608,237.37,237.33,1.48413293]
[1758308885270,8.51269528,237.41,237.34,6.69]
[1758308885470,0.02957424,237.37,237.36,1.48413293]
[1758308885673,0.02957424,237.37,237.36,8.17413293]
[1758308885867,4.72399528,237.44,237.36,8.17413293]
[1758308886172,0.02768551,237.39,237.36,1.48413293]
[1758308886472,0.02768551,237.39,237.37,6.69]
[1758308886680,0.02768551,237.39,237.36,1.48413293]
[1758308886868,0.02768551,237.39,237.38,6.69]
[1758308896183,8.31091686,237.39,237.35,6.69]
[1758308896387,1.05323135,237.38,237.35,6.69]
[1758308896588,1.05323135,237.38,237.35,10.4795]
[1758308896777,1.05323135,237.38,237.35,3.7895]
[1758308896981,1.05323135,237.38,237.33,85.58]
[1758308897286,1.05323135,237.38,237.34,6.69]
[1758308897886,1.05323135,237.38,237.37,6.69]
[1758308898275,1.05323135,237.38,237.33,85.58]
[1758308898276,0.02768551,237.39,237.35,1.48413293]
[1758308899087,0.02768551,237.39,237.36,6.69]
[1758308899282,0.02768551,237.39,237.35,1.48413293]
[1758308899681,0.02768551,237.39,237.36,6.69]
[1758308899884,0.02768551,237.39,237.38,6.69]
[1758308901392,0.02768551,237.39,237.38,8.17413293]
[1758308907488,0.02768551,237.39,237.38,6.69]
[1758308908990,0.02768551,237.39,237.38,8.17413293]
[1758308916903,4.72399528,237.49,237.47,3.7877]
[1758308917103,11.92399528,237.5,237.47,3.7877]
[1758308917302,7.2,237.5,237.46,109.73]
[1758308917498,4.72399528,237.52,237.46,102.96]
[1758308917704,4.72399528,237.52,237.46,104.44413293]
[1758308918005,4.72399528,237.53,237.47,6.77]
[1758308918206,4.72399528,237.54,237.47,6.79758231]
[1758308918800,4.72399528,237.54,237.49,3.7872]
[1758308919208,4.72399528,237.55,237.49,3.7872]
[1758308920205,7.2,237.54,237.49,3.7872]
[1758308920597,4.72399528,237.55,237.49,3.7872]
[1758308921004,11.92399528,237.54,237.47,0.02758231]
[1758308921205,7.2,237.53,237.47,102.98758231]
[1758308922909,1.48413293,237.52,237.47,102.98758231]
[1758308923601,7.2,237.51,237.47,109.75758231]
[1758308924711,7.2,237.51,237.48,6.77]
[1758308929425,1.48413293,237.52,237.47,102.94758231]
[1758308929713,7.2,237.51,237.47,109.71758231]
[1758308929917,7.2,237.51,237.47,109.61758231]
[1758308930615,7.2,237.51,237.47,102.84758231]
[1758308930815,7.2,237.51,237.48,6.77]
[1758308932522,1.48413293,237.52,237.47,102.80758231]
[1758308932719,7.2,237.51,237.47,109.57758231]
[1758308932924,7.2,237.51,237.47,102.80758231]
[1758308933223,7.2,237.51,237.48,6.77]
[1758308938121,4.72399528,237.57,237.48,3.7877]
[1758308938326,7.2,237.56,237.49,6.77]
[1758308943429,7.2,237.56,237.49,10.5574]
[1758308944328,4.72399528,237.57,237.5,7.25]
[1758308944525,11.66399528,237.58,237.5,7.25]
[1758308944727,4.72399528,237.59,237.5,7.25]
[1758308944927,4.72399528,237.6,237.5,7.25]
[1758308945126,11.66399528,237.6,237.5,7.25]
[1758308945427,11.66399528,237.6,237.53,7.27910495]
[1758308945622,6.94,237.6,237.53,11.06590495]
[1758308946623,4.72399528,237.59,237.53,7.27910495]
[1758308947723,6.94,237.57,237.53,7.27910495]
[1758308947920,6.94,237.57,237.54,7.25]
[1758308948927,4.72399528,237.59,237.53,0.02910495]
[1758308949129,4.72399528,237.6,237.54,109.95]
[1758308949833,11.66399528,237.6,237.56,7.25]
[1758308950323,4.72399528,237.61,237.56,7.25]
[1758308950625,4.72399528,237.61,237.58,7.25]
[1758308950831,4.72399528,237.63,237.58,7.25]
[1758308951427,4.72399528,237.63,237.57,3.7863]
[1758308951730,4.72399528,237.63,237.58,7.25]
[1758308951924,4.72399528,237.63,237.6,7.25]
[1758308952130,6.94,237.64,237.6,7.25]
[1758308954038,4.72399528,237.66,237.6,7.25]
[1758308954630,4.72399528,237.65,237.6,7.25]
[1758308954824,4.72399528,237.65,237.6,3.7857]
[1758308955028,11.66399528,237.66,237.62,7.25]
[1758308956627,6.94,237.66,237.62,7.25]
[1758308956832,6.94,237.66,237.61,0.02695911]
[1758308957031,6.94,237.66,237.62,7.25]
[1758308957534,6.94,237.69,237.62,7.25]
[1758308959824,4.72399528,237.71,237.62,7.25]
[1758308960226,4.72399528,237.72,237.62,7.25]
[1758308960632,4.72399528,237.72,237.62,80.13]
[1758308960838,4.72399528,237.72,237.65,3.7849]
[1758308962136,4.72399528,237.72,237.66,0.02712213]
[1758308963337,6.94,237.72,237.66,0.02712213]
[1758308964037,11.66399528,237.72,237.66,0.02712213]
[1758308964339,4.72399528,237.69,237.66,0.02712213]
[1758308965038,6.94,237.68,237.66,0.02712213]
[1758308965337,4.72399528,237.69,237.66,0.02712213]
[1758308965740,6.94,237.68,237.66,0.02712213]
[1758308966440,4.72399528,237.69,237.66,0.02712213]
[1758308966640,6.94,237.68,237.66,0.02712213]
[1758308966944,4.72399528,237.69,237.66,0.02712213]
[1758308967240,6.94,237.68,237.66,0.02712213]
[1758308967539,4.72399528,237.69,237.66,0.02712213]
[1758308967941,6.94,237.68,237.66,0.02712213]
[1758308968241,4.72399528,237.69,237.66,0.02712213]
[1758308969240,4.72399528,237.7,237.66,0.02712213]
[1758308970246,6.9,237.69,237.66,0.02712213]
[1758308970540,4.72399528,237.7,237.66,0.02712213]
[1758308970938,8.50819528,237.71,237.66,0.02712213]
[1758308971242,6.9,237.7,237.66,7.19712213]
[1758308971445,4.72399528,237.71,237.66,7.19712213]
[1758308971637,6.9,237.7,237.66,7.19712213]
[1758308971836,6.9,237.69,237.66,7.19712213]
[1758308972445,0.7325005,237.7,237.66,7.19712213]
[1758308972640,6.9,237.69,237.66,0.02712213]
[1758308973546,6.9,237.69,237.66,7.19712213]
[1758308974344,0.7325005,237.7,237.67,7.17]
[1758308974947,7.6325005,237.7,237.67,7.17]
[1758308978049,6.9,237.69,237.66,0.02712213]
[1758308978851,0.7325005,237.7,237.66,0.02712213]
[1758308979054,11.62399528,237.69,237.66,0.02712213]
[1758308979454,6.9,237.68,237.66,0.02712213]
[1758308980049,8.50849528,237.69,237.66,0.02712213]
[1758308980247,6.9,237.68,237.66,0.02712213]
[1758308980651,8.50849528,237.69,237.66,0.02712213]
[1758308980857,6.9,237.68,237.66,0.02712213]
[1758308981053,8.50849528,237.69,237.66,0.02712213]
[1758308981254,6.9,237.68,237.66,0.02712213]
[1758308981455,4.72399528,237.69,237.66,0.02712213]
[1758308981657,6.9,237.69,237.66,0.02712213]
[1758308981846,5.45649578,237.7,237.66,0.02712213]
[1758308982051,6.9,237.69,237.66,0.02712213]
[1758308982352,6.9,237.68,237.66,0.02712213]
[1758308982759,4.72399528,237.69,237.66,0.02712213]
[1758308983457,6.9,237.68,237.66,0.02712213]
[1758308983855,4.72399528,237.69,237.66,0.02712213]
[1758308984055,6.9,237.68,237.66,0.02712213]
[1758308984257,6.9,237.67,237.66,0.02712213]
[1758308989166,11.62399528,237.67,237.66,0.02712213]
[1758308993168,6.9,237.67,237.66,0.02712213]
[1758308997467,6.9,237.68,237.66,0.02712213]
[1758309000367,0.7325005,237.7,237.68,7.24]
[1758309000569,4.72697464,237.69,237.68,7.24]
[1758309001963,4.72697464,237.69,237.67,5.26512753]
[1758309002171,7.1,237.68,237.67,1.48052753]
[1758309002467,4.72697464,237.69,237.67,1.48052753]
[1758309002667,4.72697464,237.69,237.67,8.72052753]
[1758309003468,4.72697464,237.69,237.67,7.24]
[1758309006769,12.55947514,237.7,237.67,7.24]
[1758309006975,7.8325005,237.7,237.67,7.24]
[1758309007874,12.55661649,237.7,237.67,7.24]
[1758309009374,12.55661649,237.7,237.68,7.24]
[1758309012971,5.45661649,237.7,237.68,7.24]
[1758309013572,5.45661649,237.7,237.68,11.0244]
[1758309013776,5.45661649,237.7,237.69,7.24]
[1758309015073,7.1,237.69,237.67,7.24]
[1758309015574,7.1,237.69,237.67,11.0246]
[1758309016678,12.55661649,237.7,237.68,3.7844]
[1758309017078,12.55661649,237.7,237.68,11.0244]
[1758309017975,5.45661649,237.7,237.68,3.7844]
[1758309018279,5.45661649,237.7,237.69,7.24]
[1758309019183,7.1,237.7,237.69,3.7842]
[1758309020083,4.72411599,237.71,237.69,11.0242]
[1758309020376,11.82411599,237.72,237.7,3.7841]
[1758309020582,11.82411599,237.72,237.7,11.0241]
[1758309021083,5.4565317,237.73,237.72,7.24]
[1758309023582,0.73241571,237.73,237.72,7.24]
[1758309023877,11.82411599,237.76,237.74,7.24]
[1758309024082,7.1,237.76,237.72,8.72052753]
[1758309024282,7.1,237.76,237.73,7.24]
[1758309024676,7.1,237.76,237.72,1.50773471]
[1758309024881,4.72411599,237.77,237.72,8.74773471]
[1758309025181,7.1,237.76,237.72,8.74773471]
[1758309025383,4.72411599,237.77,237.72,8.74773471]
[1758309025687,7.1,237.76,237.73,11.0237]
[1758309025879,7.1,237.76,237.73,7.24]
[1758309026374,7.1,237.76,237.75,3.7835]
[1758309029889,7.1,237.76,237.73,11.0237]
[1758309030090,5.4564084,237.78,237.73,11.0237]
[1758309030292,6.84,237.77,237.73,11.0237]
[1758309030488,5.4564084,237.78,237.73,11.0237]
[1758309030989,4.72411599,237.77,237.73,11.0237]
[1758309031190,6.84,237.76,237.73,11.0237]
[1758309032486,4.72411599,237.77,237.73,11.0237]
[1758309032986,6.84,237.76,237.73,11.0237]
[1758309033789,6.84,237.76,237.73,3.7837]
[1758309033993,6.84,237.76,237.73,10.9037]
[1758309034792,6.84,237.76,237.74,7.12]
[1758309038800,6.84,237.76,237.74,10.9035]
[1758309039898,6.84,237.76,237.74,12.38402753]
[1758309040594,5.4564084,237.78,237.74,1.48052753]
[1758309040795,7.57229241,237.78,237.75,10.9033]
[1758309040999,6.84,237.77,237.75,10.9033]
[1758309042500,7.57229241,237.78,237.76,7.12]
[1758309044206,7.57229241,237.78,237.76,10.9032]
[1758309044396,12.2964084,237.78,237.76,10.9032]
[1758309044596,0.73229241,237.78,237.77,7.12]
[1758309044900,0.73229241,237.78,237.77,8.60052753]